bitfinex-derivatives/quotes_BTCF0:USTF0_20241217
["timestamp","ask_amount","ask_price","bid_price","bid_amount"]
[1734428385268,0.046674,107130.0,107120.0,1.27758769]
[1734428385770,0.407474,107130.0,107120.0,1.27758769]
[1734428386173,0.407474,107130.0,107120.0,1.27708769]
[1734428386564,0.407474,107130.0,107120.0,1.0338863]
[1734428386761,0.407474,107130.0,107120.0,1.27710246]
[1734428387265,0.407474,107130.0,107120.0,1.27760246]
[1734428387470,0.046674,107130.0,107120.0,1.27760246]
[1734428388261,0.046674,107130.0,107120.0,1.27710246]
[1734428388672,0.046674,107130.0,107120.0,1.27925955]
[1734428389164,0.046674,107130.0,107120.0,1.27975955]
[1734428389469,0.046674,107130.0,107120.0,0.66493056]
[1734428389669,0.046674,107130.0,107120.0,1.28044409]
[1734428389966,0.046674,107130.0,107120.0,1.28044496]
[1734428391165,0.046674,107130.0,107120.0,1.28918765]
[1734428392474,0.046674,107130.0,107120.0,1.34400228]
[1734428392658,0.046674,107130.0,107120.0,1.08928788]
[1734428392865,0.04667,107140.0,107130.0,0.046674]
[1734428393165,0.04717,107140.0,107130.0,0.82426085]
[1734428393372,0.04717,107140.0,107130.0,0.81551816]
[1734428394173,0.04667,107140.0,107130.0,0.81551816]
[1734428395273,0.04717,107140.0,107130.0,0.31196685]
[1734428395577,0.04717,107140.0,107130.0,0.7594217]
[1734428396287,0.04667,107140.0,107130.0,0.7594217]
[1734428397161,0.04717,107140.0,107130.0,0.7594217]
[1734428397366,0.04717,107140.0,107130.0,0.31196685]
[1734428397575,0.04717,107140.0,107130.0,0.81551816]
[1734428398174,0.04667,107140.0,107130.0,1.38376231]
[1734428399177,0.04717,107140.0,107130.0,1.37501962]
[1734428399378,0.04717,107140.0,107130.0,0.81551816]
[1734428400274,0.04667,107140.0,107130.0,0.87146831]
[1734428400579,0.04667,107140.0,107130.0,1.37465427]
[1734428400775,0.04667,107140.0,107130.0,0.87146831]
[1734428401080,0.04667,107140.0,107130.0,1.37464858]
[1734428401379,0.04717,107140.0,107130.0,0.87146831]
[1734428401781,0.04717,107140.0,107130.0,1.3746182]
[1734428402167,0.04667,107140.0,107130.0,1.3746182]
[1734428402873,0.04667,107140.0,107130.0,0.81511674]
[1734428403273,0.04717,107140.0,107130.0,0.81511674]
[1734428404275,0.04667,107140.0,107130.0,0.81511674]
[1734428404676,0.04667,107140.0,107130.0,1.3746182]
[1734428404877,0.04667,107140.0,107130.0,0.81511674]
[1734428405271,0.04717,107140.0,107130.0,0.81511674]
[1734428405788,0.04717,107140.0,107130.0,0.31196685]
[1734428405977,0.04717,107140.0,107130.0,1.37456367]
[1734428406290,0.04717,107140.0,107130.0,0.80473962]
[1734428406773,0.04717,107140.0,107130.0,0.86114572]
[1734428406975,0.04717,107140.0,107130.0,0.80633109]
[1734428407286,0.04717,107140.0,107130.0,0.86114572]
[1734428408279,0.04717,107140.0,107130.0,0.80473808]
[1734428408984,0.04717,107140.0,107130.0,1.16553808]
[1734428410191,0.04717,107140.0,107130.0,0.80473808]
[1734428410787,0.04717,107140.0,107130.0,0.81062414]
[1734428412375,0.04717,107140.0,107130.0,1.17142414]
[1734428412775,0.04717,107140.0,107130.0,0.81062414]
[1734428412983,0.04717,107140.0,107130.0,1.17142414]
[1734428413183,0.04717,107140.0,107130.0,0.81062414]
[1734428413387,0.04717,107140.0,107130.0,1.17142414]
[1734428413780,0.04717,107140.0,107130.0,0.81062414]
[1734428414582,0.0005,107140.0,107130.0,1.17142414]
[1734428414987,0.0005,107140.0,107130.0,0.81062414]
[1734428415385,0.0005,107140.0,107130.0,0.8106404]
[1734428415989,0.0005,107140.0,107130.0,1.1714404]
[1734428418593,0.04717,107140.0,107130.0,1.1714404]
[1734428418890,0.0005,107140.0,107130.0,1.1714404]
[1734428419090,0.0005,107140.0,107130.0,1.73094186]
[1734428419389,0.04676106,107160.0,107150.0,0.046665]
[1734428419583,0.04676106,107160.0,107150.0,1.17162159]
[1734428420185,9.806e-05,107160.0,107150.0,1.17162159]
[1734428421181,0.04675906,107160.0,107150.0,1.17162159]
[1734428422892,0.04675906,107160.0,107150.0,0.76415659]
[1734428423191,0.04675906,107160.0,107150.0,0.81082159]
[1734428423386,0.04675906,107160.0,107150.0,0.75426327]
[1734428424280,0.10157369,107160.0,107150.0,0.54820532]
[1734428424484,0.04675906,107160.0,107150.0,0.54820532]
[1734428425190,0.04675906,107160.0,107150.0,0.56652197]
[1734428425688,0.10157369,107160.0,107150.0,0.51170734]
[1734428427099,0.04675906,107160.0,107150.0,0.66102197]
[1734428428794,0.04675906,107160.0,107150.0,0.92126795]
[1734428429293,0.407451,107190.0,107160.0,0.046661]
[1734428429494,0.407445,107200.0,107180.0,0.60277312]
[1734428429687,0.407445,107200.0,107190.0,0.89181643]
[1734428429688,0.3608,107200.0,107190.0,0.89181643]
[1734428429889,0.3608,107200.0,107190.0,0.53140649]
[1734428430189,0.3608,107200.0,107190.0,0.92188655]
[1734428430387,0.3608,107200.0,107190.0,0.52213855]
[1734428431498,0.37912612,107210.0,107190.0,0.52213855]
[1734428431697,0.37912612,107210.0,107200.0,0.15627326]
[1734428431698,0.36089989,107210.0,107200.0,0.15627326]
[1734428431994,9.989e-05,107210.0,107200.0,0.54675332]
[1734428432197,9.989e-05,107210.0,107200.0,0.60276512]
[1734428432401,9.989e-05,107210.0,107200.0,1.02360127]
[1734428432898,9.989e-05,107210.0,107200.0,0.93790941]
[1734428433593,0.0018,107220.0,107200.0,1.29272404]
[1734428433794,0.3626,107230.0,107220.0,0.046635]
[1734428434131,0.3626,107230.0,107220.0,0.13008358]
[1734428434286,0.3631,107230.0,107220.0,0.46341617]
[1734428434490,0.3631,107230.0,107220.0,0.46340141]
[1734428434702,0.3631,107230.0,107220.0,0.13008358]
[1734428435102,0.3631,107230.0,107220.0,0.046635]
[1734428435296,0.3631,107230.0,107220.0,0.37995213]
[1734428435896,0.3631,107230.0,107220.0,0.46340071]
[1734428436497,0.3631,107230.0,107220.0,0.046635]
[1734428436914,0.3631,107230.0,107220.0,0.077035]
[1734428437906,0.3631,107230.0,107220.0,0.0304]
[1734428438096,0.409731,107230.0,107220.0,0.0304]
[1734428438802,0.409731,107230.0,107220.0,0.077035]
[1734428441005,0.409731,107230.0,107220.0,0.0304]
[1734428442403,0.409731,107230.0,107220.0,0.16048358]
[1734428442911,0.3631,107230.0,107220.0,0.16048358]
[1734428446006,0.3631,107230.0,107220.0,0.24393216]
[1734428446007,0.0023,107230.0,107220.0,0.24393216]
[1734428446206,0.3626,107240.0,107230.0,0.046631]
[1734428446404,0.3626,107240.0,107230.0,0.16197958]
[1734428446708,0.0018,107240.0,107230.0,0.16197958]
[1734428446910,0.0018,107240.0,107230.0,0.52277958]
[1734428447305,0.36268426,107250.0,107230.0,0.86713958]
[1734428447504,0.36268426,107250.0,107240.0,0.21352316]
[1734428447806,0.0018,107260.0,107250.0,0.046622]
[1734428448000,0.0018,107260.0,107250.0,0.60521916]
[1734428448809,0.0018,107260.0,107250.0,0.52177058]
[1734428449408,0.0023,107260.0,107250.0,0.52177058]
[1734428450231,0.3631,107260.0,107250.0,0.16097058]
[1734428450798,0.3631,107260.0,107250.0,0.52177058]
[1734428450799,0.0023,107260.0,107250.0,0.52177058]
[1734428452306,0.0023,107260.0,107250.0,0.60521916]
[1734428455603,0.0023,107260.0,107250.0,0.52177058]
[1734428455805,0.0023,107260.0,107250.0,0.53841737]
[1734428456002,0.0023,107260.0,107250.0,0.45496879]
[1734428456206,0.0023,107260.0,107250.0,0.53841737]
[1734428460413,0.0023,107260.0,107250.0,0.62194001]
[1734428461126,0.0018,107270.0,107260.0,0.046618]
[1734428461420,0.0023,107270.0,107260.0,0.49086658]
[1734428461615,0.0023,107270.0,107260.0,0.52196658]
[1734428462317,0.0018,107270.0,107260.0,0.52196658]
[1734428463222,0.0023,107270.0,107260.0,0.52196658]
[1734428463618,0.0023,107270.0,107260.0,0.438518]
[1734428463816,0.0023,107270.0,107260.0,0.52196658]
[1734428466121,0.0675,107280.0,107260.0,0.60541516]
[1734428466320,0.0344,107280.0,107270.0,0.91851016]
[1734428467123,0.0344,107280.0,107270.0,0.83506158]
[1734428467311,0.0349,107280.0,107270.0,0.83506158]
[1734428468318,0.0344,107280.0,107270.0,0.83506158]
[1734428469320,0.0349,107280.0,107270.0,0.83506158]
[1734428470316,0.0344,107280.0,107270.0,0.83506158]
[1734428471117,0.0344,107280.0,107270.0,0.85112648]
[1734428471323,0.0349,107280.0,107270.0,0.85112648]
[1734428472324,0.0344,107280.0,107270.0,0.85112648]
[1734428473218,0.0349,107280.0,107270.0,0.85112648]
[1734428474022,0.3957,107280.0,107270.0,0.4068779]
[1734428474324,0.0663,107280.0,107270.0,0.49032648]
[1734428474914,0.0663,107280.0,107270.0,0.85112648]
[1734428476816,0.0663,107280.0,107270.0,0.93457506]
[1734428477119,0.0344,107280.0,107270.0,0.93457506]
[1734428477925,0.0344,107280.0,107270.0,0.85112648]
[1734428480430,0.0344,107280.0,107270.0,1.24038572]
[1734428480630,0.0344,107280.0,107270.0,0.85112648]
[1734428480831,0.0344,107280.0,107270.0,1.24038572]
[1734428481216,0.0344,107280.0,107270.0,1.2594451]
[1734428482623,0.0344,107280.0,107270.0,1.34289368]
[1734428482824,0.0344,107280.0,107270.0,1.2594451]
[1734428483024,0.0344,107280.0,107270.0,1.34289368]
[1734428483323,0.0344,107280.0,107270.0,1.78938554]
[1734428483729,0.167,107300.0,107280.0,0.046609]
[1734428483932,0.0018,107310.0,107290.0,0.98170716]
[1734428484223,0.0018,107310.0,107300.0,0.49084858]
[1734428484422,0.0018,107320.0,107300.0,0.57429716]
[1734428484619,0.0018,107320.0,107310.0,0.57429316]
[1734428484821,0.0018,107320.0,107310.0,0.57437574]
[1734428486127,0.0018,107320.0,107310.0,0.13012716]
[1734428487129,0.0623,107320.0,107310.0,0.13012716]
[1734428487720,0.0623,107320.0,107310.0,0.49092716]
[1734428489326,0.0623,107320.0,107310.0,0.04667858]
[1734428489527,0.0623,107320.0,107310.0,0.13012716]
[1734428490028,0.0623,107320.0,107310.0,0.14474933]
[1734428490631,0.0623,107320.0,107310.0,0.50554933]
[1734428491032,0.0623,107320.0,107310.0,0.06130075]
[1734428491938,0.0623,107320.0,107310.0,0.14474933]
[1734428493337,0.0623,107320.0,107310.0,0.06130075]
[1734428493639,0.0623,107320.0,107310.0,0.42210075]
[1734428494339,0.0623,107320.0,107310.0,0.06130075]
[1734428494938,0.0623,107320.0,107310.0,0.14474933]
[1734428495537,0.0628,107320.0,107310.0,0.14474933]
[1734428496834,0.0628,107320.0,107310.0,0.06130075]
[1734428497864,0.0628,107320.0,107310.0,0.14474933]
[1734428498138,0.0628,107320.0,107310.0,0.06130075]
[1734428498944,0.0628,107320.0,107310.0,0.08010531]
[1734428500551,0.0628,107320.0,107310.0,0.16355389]
[1734428501155,0.0628,107320.0,107310.0,0.52435389]
[1734428502043,0.0628,107320.0,107310.0,0.49556519]
[1734428502534,0.0327,107320.0,107310.0,0.55022507]
[1734428502741,0.0341,107330.0,107310.0,1.5426881]
[1734428502938,0.0341,107330.0,107320.0,0.51671076]
[1734428503345,0.0346,107330.0,107320.0,0.96182466]
[1734428504038,0.0346,107330.0,107320.0,0.49067721]
[1734428504438,0.0341,107330.0,107320.0,0.49067721]
[1734428505047,0.0341,107330.0,107320.0,0.407391]
[1734428505443,0.0346,107330.0,107320.0,0.407391]
[1734428505843,0.0655,107330.0,107320.0,0.407391]
[1734428506543,0.111587,107330.0,107320.0,0.407391]
[1734428506945,0.472387,107330.0,107320.0,0.046591]
[1734428507244,0.111587,107330.0,107320.0,0.046591]
[1734428507450,0.112087,107330.0,107320.0,0.046591]
[1734428508149,0.472887,107330.0,107320.0,0.046591]
[1734428509237,0.112087,107330.0,107320.0,0.046591]
[1734428509448,0.065,107330.0,107320.0,0.046591]
[1734428510247,0.065,107330.0,107320.0,0.407391]
[1734428510547,0.0327,107330.0,107320.0,0.49067721]
[1734428510748,0.0327,107330.0,107320.0,0.93579111]
[1734428510974,0.0018,107330.0,107320.0,0.93579111]
[1734428511154,0.3631,107340.0,107330.0,0.046587]
[1734428511350,0.0018,107340.0,107330.0,0.93578711]
[1734428511559,0.0018,107340.0,107330.0,1.43718075]
[1734428512146,0.0018,107340.0,107330.0,0.99142634]
[1734428512351,0.0023,107340.0,107330.0,0.99142634]
[1734428513252,0.06439952,107350.0,107330.0,1.59440571]
[1734428513445,0.0005,107340.0,107330.0,1.5111195]
[1734428514246,0.0005,107340.0,107330.0,1.40074952]
[1734428514446,0.0005,107340.0,107330.0,0.93199639]
[1734428514649,0.0005,107340.0,107330.0,1.12565258]
[1734428514846,0.0005,107340.0,107330.0,1.13439527]
[1734428515048,0.03279952,107350.0,107340.0,0.046583]
[1734428515249,0.03279952,107350.0,107340.0,1.07751374]
[1734428515555,0.03329952,107350.0,107340.0,1.07751374]
[1734428515742,0.03329952,107350.0,107340.0,0.93654664]
[1734428516352,0.03279952,107350.0,107340.0,0.93654664]
[1734428517455,0.03329952,107350.0,107340.0,0.93654664]
[1734428517650,0.00239952,107350.0,107340.0,0.49066921]
[1734428518049,0.00239952,107350.0,107340.0,0.55286921]
[1734428518456,0.00189952,107350.0,107340.0,0.55286921]
[1734428519353,0.00239952,107350.0,107340.0,0.55286921]
[1734428519748,0.00239952,107350.0,107340.0,0.99874664]
[1734428520354,0.00189952,107350.0,107340.0,0.91546043]
[1734428520946,0.00189952,107350.0,107340.0,0.99874664]
[1734428521456,0.00239952,107350.0,107340.0,0.99874664]
[1734428521852,0.00239952,107350.0,107340.0,0.55286921]
[1734428522159,0.00239952,107350.0,107340.0,0.469583]
[1734428522361,0.00189952,107350.0,107340.0,0.469583]
[1734428522553,0.00189952,107350.0,107340.0,0.55286921]
[1734428523357,0.00239952,107350.0,107340.0,0.55286921]
[1734428524054,0.00239952,107350.0,107340.0,0.99874664]
[1734428524255,0.0005,107350.0,107340.0,1.50051374]
[1734428524451,0.0335,107360.0,107350.0,0.046578]
[1734428524657,0.0335,107360.0,107350.0,0.57504052]
[1734428525049,0.0335,107360.0,107350.0,0.49066421]
[1734428525249,0.0335,107360.0,107350.0,0.407378]
[1734428525456,0.034,107360.0,107350.0,0.407378]
[1734428526457,0.0335,107360.0,107350.0,0.407378]
[1734428527449,0.034,107360.0,107350.0,0.49066421]
[1734428527650,0.0023,107360.0,107350.0,0.93584052]
[1734428527852,0.0023,107360.0,107350.0,0.49075038]
[1734428528161,0.0023,107360.0,107350.0,0.52365038]
[1734428528349,0.3626,107370.0,107350.0,1.31278669]
[1734428528555,0.3626,107370.0,107360.0,0.49066021]
[1734428528556,0.0018,107370.0,107360.0,0.49066021]
[1734428528750,0.0018,107370.0,107360.0,0.55246021]
[1734428528956,0.0018,107370.0,107360.0,1.05422731]
[1734428529359,0.0018,107370.0,107360.0,0.55246021]
[1734428530064,0.00187843,107380.0,107360.0,1.61061968]
[1734428530265,0.00187843,107380.0,107370.0,0.49065621]
[1734428532162,0.00187843,107380.0,107370.0,0.40737]
[1734428533969,0.00187843,107380.0,107370.0,0.04657]
[1734428533970,0.13172964,107380.0,107370.0,0.04657]
[1734428534154,0.16202964,107380.0,107370.0,0.04657]
[1734428534768,0.07874343,107380.0,107370.0,0.04657]
[1734428535468,0.03217843,107380.0,107370.0,0.04657]
[1734428536673,0.03217843,107380.0,107370.0,0.06058006]
[1734428537170,0.03217843,107380.0,107370.0,0.42138006]
[1734428538455,0.03267843,107380.0,107370.0,0.42138006]
[1734428539973,0.03267843,107380.0,107370.0,0.50466627]
[1734428540965,0.03267843,107380.0,107370.0,0.08328621]
[1734428541368,0.03267843,107380.0,107370.0,0.12985621]
[1734428542564,0.03267843,107380.0,107370.0,0.04657]
[1734428543161,0.03267843,107380.0,107370.0,0.06505795]
[1734428544470,0.03267843,107380.0,107370.0,0.07864076]
[1734428545356,0.03217843,107380.0,107370.0,0.07864076]
[1734428547264,0.52282964,107380.0,107370.0,0.06015281]
[1734428547459,0.046573,107370.0,107360.0,0.99362814]
[1734428547660,0.55135921,107370.0,107360.0,0.046574]
[1734428551073,0.468073,107370.0,107360.0,0.046574]
[1734428552167,0.48116341,107370.0,107350.0,0.0005]
[1734428552361,0.407374,107360.0,107350.0,0.046578]
[1734428553161,0.407374,107360.0,107350.0,0.04666261]
[1734428553361,0.407374,107360.0,107350.0,0.04716261]
[1734428554367,0.36548011,107360.0,107350.0,0.54842971]
[1734428554878,0.36548011,107360.0,107350.0,0.04666261]
[1734428555482,0.36548011,107360.0,107350.0,0.04716261]
[1734428556475,0.36548011,107360.0,107350.0,0.07844338]
[1734428556975,0.39848011,107360.0,107350.0,0.07844338]
[1734428557165,0.48176632,107360.0,107350.0,8.461e-05]
[1734428557371,0.48176632,107360.0,107350.0,0.00058461]
[1734428557685,0.48176632,107360.0,107350.0,0.0093273]
[1734428557969,0.48176632,107360.0,107350.0,0.00058461]
[1734428558368,0.48176632,107360.0,107350.0,8.461e-05]
[1734428559270,0.78176632,107360.0,107350.0,8.461e-05]
[1734428559472,0.78176632,107360.0,107350.0,0.0005]
[1734428559664,0.046578,107350.0,107340.0,0.04658]
[1734428559867,0.52086421,107350.0,107340.0,0.04658]
[1734428560477,0.046587,107340.0,107330.0,0.046586]
[1734428560668,0.046587,107330.0,107320.0,0.56735189]
[1734428560869,0.407387,107330.0,107320.0,0.06558479]
[1734428561469,0.407387,107330.0,107320.0,0.06565364]
[1734428563183,0.407387,107330.0,107320.0,0.07852425]
[1734428564269,0.3608,107330.0,107320.0,0.07852425]
[1734428564780,0.407387,107330.0,107320.0,0.04659]
[1734428565578,0.407387,107330.0,107320.0,0.06487651]
[1734428569478,0.407387,107330.0,107320.0,0.06537651]
[1734428569871,0.0639,107340.0,107330.0,0.046587]
[1734428570066,0.0639,107340.0,107330.0,0.407387]
[1734428570067,0.110483,107340.0,107330.0,0.407387]
[1734428571176,0.110483,107340.0,107330.0,0.046587]
[1734428571366,0.046587,107330.0,107320.0,0.90153261]
[1734428571572,0.046587,107330.0,107320.0,0.45687451]
[1734428572077,0.046587,107330.0,107320.0,0.95864161]
[1734428572970,0.50798621,107340.0,107320.0,0.95864161]
[1734428573176,0.471285,107340.0,107330.0,0.49115943]
[1734428573380,0.471285,107340.0,107330.0,0.046587]
[1734428575578,0.471285,107340.0,107320.0,0.49174732]
[1734428575579,0.68444242,107340.0,107320.0,0.49174732]
[1734428575884,0.52347321,107330.0,107320.0,0.04717489]
[1734428576383,0.52347321,107330.0,107320.0,0.05591758]
[1734428576976,0.52347321,107330.0,107320.0,0.04717489]
[1734428577374,0.52347321,107330.0,107320.0,0.05591758]
[1734428577576,0.52347321,107330.0,107320.0,0.04717489]
[1734428579581,0.52347321,107330.0,107320.0,0.06558272]
[1734428580370,0.52347321,107330.0,107320.0,0.00058689]
[1734428581482,0.52347321,107330.0,107320.0,8.689e-05]
[1734428584075,0.53974609,107330.0,107320.0,8.689e-05]
[1734428588280,0.83974609,107330.0,107310.0,0.83434835]
[1734428588485,0.83974609,107330.0,107310.0,0.24138492]
[1734428588486,0.44408621,107320.0,107310.0,0.24138492]
[1734428588675,0.57396342,107320.0,107310.0,0.24138492]
[1734428589278,0.57396342,107320.0,107310.0,0.00057657]
[1734428589882,0.49067721,107320.0,107310.0,0.00057657]
[1734428590583,0.49067721,107320.0,107310.0,7.657e-05]
[1734428595177,0.87396342,107320.0,107310.0,5.7e-07]
[1734428596586,0.57396342,107320.0,107310.0,5.7e-07]
[1734428597284,0.49067721,107320.0,107310.0,5.7e-07]
[1734428597583,0.57396342,107320.0,107310.0,5.7e-07]
[1734428597979,0.046596,107310.0,107300.0,0.00238]
[1734428598177,0.60426842,107310.0,107300.0,0.00238]
[1734428598489,0.60426842,107310.0,107300.0,0.00188]
[1734428599089,0.60426842,107310.0,107300.0,0.00198671]
[1734428599492,0.60426842,107310.0,107300.0,0.00248671]
[1734428599992,0.63676842,107310.0,107300.0,0.00248671]
[1734428600680,0.63676842,107310.0,107300.0,7.1e-07]
[1734428601490,0.63676842,107310.0,107300.0,0.00050071]
[1734428601790,0.63683784,107310.0,107300.0,0.00050071]
[1734428602380,0.63683784,107310.0,107300.0,7.1e-07]
[1734428602581,0.0466,107300.0,107290.0,0.33395047]
[1734428602794,0.49068621,107300.0,107290.0,0.33395047]
[1734428603403,0.046604,107290.0,107280.0,0.47086651]
[1734428603686,0.046604,107290.0,107280.0,0.47093534]
[1734428603687,0.49069021,107290.0,107280.0,0.47093534]
[1734428604094,0.4621248,107290.0,107280.0,0.47093534]
[1734428604293,0.4621248,107290.0,107280.0,0.91550777]
[1734428604598,0.4621248,107290.0,107280.0,0.47093534]
[1734428604895,0.5168456,107290.0,107280.0,0.91550777]
[1734428605388,0.5168456,107290.0,107280.0,0.47110024]
[1734428605795,0.5168456,107290.0,107280.0,0.28945823]
[1734428606093,0.5483456,107290.0,107280.0,0.28945823]
[1734428606281,0.5483456,107290.0,107280.0,0.73403066]
[1734428606481,0.5483456,107290.0,107280.0,0.28945823]
[1734428606682,0.5483456,107290.0,107280.0,0.2895364]
[1734428607196,0.4936248,107290.0,107280.0,0.4446506]
[1734428607583,0.4936248,107290.0,107280.0,0.46103396]
[1734428608483,0.5483456,107290.0,107280.0,0.46103396]
[1734428608785,0.5483456,107290.0,107280.0,0.4446506]
[1734428609179,0.5812456,107290.0,107280.0,0.4446506]
[1734428609482,0.046609,107280.0,107270.0,0.3480926]
[1734428609682,0.5168506,107280.0,107270.0,0.3480926]
[1734428610189,0.5168506,107280.0,107260.0,0.5996671]
[1734428610390,0.4621338,107270.0,107260.0,0.0979]
[1734428610591,0.4621338,107270.0,107260.0,0.09800996]
[1734428612295,0.4621338,107270.0,107260.0,0.11435172]
[1734428612795,0.4621338,107270.0,107260.0,0.13315025]
[1734428614697,0.157612,107290.0,107260.0,0.65050985]
[1734428614698,0.407404,107290.0,107260.0,0.65050985]
[1734428614901,0.4621248,107290.0,107270.0,0.1013338]
[1734428615084,0.046609,107280.0,107270.0,0.1013338]
[1734428615997,0.046609,107280.0,107270.0,0.046613]
[1734428616596,0.046609,107280.0,107270.0,0.12998233]
[1734428616930,0.046609,107280.0,107270.0,1.1881418]
[1734428617298,0.046609,107280.0,107270.0,1.10477247]
[1734428617492,0.046609,107280.0,107270.0,0.60300537]
[1734428618896,0.046609,107280.0,107270.0,0.96380537]
[1734428619093,0.046609,107280.0,107270.0,1.57583698]
[1734428619596,0.046609,107280.0,107270.0,0.96380537]
[1734428620102,0.407407,107290.0,107280.0,0.046609]
[1734428620400,0.407407,107290.0,107280.0,0.5482706]
[1734428621394,0.407407,107290.0,107280.0,0.5796706]
[1734428622404,0.4074,107300.0,107280.0,0.9870756]
[1734428622604,0.4074,107300.0,107290.0,1.13234963]
[1734428622788,0.47076942,107310.0,107290.0,1.13234963]
[1734428622789,0.47076742,107310.0,107300.0,0.0466]
[1734428622992,0.47076742,107310.0,107300.0,1.18914704]
[1734428623206,0.47076742,107310.0,107300.0,0.68743128]
[1734428623392,0.47076742,107310.0,107300.0,0.60406195]
[1734428623692,0.47126742,107310.0,107300.0,0.60406195]
[1734428624306,0.11046742,107310.0,107300.0,0.61279757]
[1734428624507,0.47076742,107310.0,107300.0,1.72640854]
[1734428624697,0.47076742,107310.0,107300.0,0.54817936]
[1734428625497,0.11046742,107310.0,107300.0,0.49245353]
[1734428625894,0.11046742,107310.0,107300.0,0.0466]
[1734428626605,0.10996742,107310.0,107300.0,0.0466]
[1734428627101,0.47076742,107310.0,107300.0,0.0466]
[1734428627503,0.47126742,107310.0,107300.0,0.0466]
[1734428628501,0.47076742,107310.0,107300.0,0.0466]
[1734428628906,0.47076742,107310.0,107300.0,0.12996933]
[1734428629203,0.10996742,107310.0,107300.0,0.57582286]
[1734428629701,0.11046742,107310.0,107300.0,0.12996933]
[1734428630505,0.47126742,107310.0,107300.0,0.12996933]
[1734428631806,0.06386942,107310.0,107300.0,0.12996933]
[1734428636029,0.06386942,107310.0,107300.0,0.15596]
[1734428638513,0.00056942,107310.0,107300.0,1.10345939]
[1734428638714,0.00056942,107310.0,107300.0,0.65760586]
[1734428639015,0.00056942,107310.0,107300.0,1.13505481]
[1734428639906,0.00056942,107310.0,107300.0,0.1883265]
[1734428641213,0.00056942,107310.0,107300.0,1.10538586]
[1734428641214,0.0005,107310.0,107300.0,1.10538586]
[1734428641515,0.0609,107330.0,107320.0,0.046591]
[1734428641718,0.0609,107330.0,107320.0,0.155951]
[1734428644118,0.0609,107330.0,107320.0,0.046591]
[1734428644617,0.0609,107330.0,107320.0,0.12987579]
[1734428645812,0.4217,107330.0,107320.0,0.046591]
[1734428646209,0.0609,107330.0,107320.0,0.046591]
[1734428646602,0.4217,107330.0,107320.0,0.49177407]
[1734428647017,0.468287,107330.0,107320.0,0.046591]
[1734428647409,0.468287,107330.0,107320.0,0.49177407]
[1734428647606,0.468787,107330.0,107320.0,0.49177407]
[1734428648212,0.468787,107330.0,107320.0,0.51707127]
[1734428648413,0.468787,107330.0,107320.0,0.0718882]
[1734428648612,0.468287,107330.0,107320.0,0.51707127]
[1734428649109,0.468287,107330.0,107320.0,0.0718882]
[1734428649513,0.468287,107330.0,107320.0,0.51707127]
[1734428649822,0.468787,107330.0,107320.0,0.51707127]
[1734428650617,0.468287,107330.0,107320.0,0.0718882]
[1734428651821,0.468787,107330.0,107320.0,0.0718882]
[1734428652727,0.468287,107330.0,107320.0,0.0718882]
[1734428653220,0.468287,107330.0,107320.0,0.51707127]
[1734428653616,0.468787,107330.0,107320.0,0.0718882]
[1734428654528,0.468787,107330.0,107320.0,0.51707127]
[1734428654825,0.468787,107330.0,107320.0,0.0718882]
[1734428655620,0.468287,107330.0,107320.0,0.0718882]
[1734428657624,0.468287,107330.0,107320.0,0.51707127]
[1734428662424,0.468287,107330.0,107320.0,1.01865063]
[1734428663915,0.468287,107330.0,107320.0,1.10193542]
[1734428664928,0.468287,107330.0,107320.0,0.93490176]
[1734428665125,0.468287,107330.0,107320.0,0.4799134]
[1734428665628,0.468287,107330.0,107320.0,0.12987579]
[1734428666017,0.468287,107330.0,107320.0,0.60283104]
[1734428666320,0.468287,107330.0,107320.0,0.12602818]
[1734428666515,0.468287,107330.0,107320.0,0.62760754]
[1734428666718,0.468287,107330.0,107320.0,0.12602818]
[1734428667631,0.468287,107330.0,107320.0,0.62760754]
[1734428668323,0.468287,107330.0,107320.0,0.63634316]
[1734428668527,0.468287,107330.0,107320.0,1.19380511]
[1734428669253,0.4217,107330.0,107320.0,1.24846579]
[1734428669732,0.4217,107330.0,107320.0,1.23973017]
[1734428670029,0.3797938,107330.0,107320.0,1.23973017]
[1734428670525,0.3797938,107330.0,107320.0,0.68226822]
[1734428670830,0.079485,107340.0,107330.0,0.046587]
[1734428671037,0.079485,107340.0,107330.0,0.10124768]
[1734428671528,0.079485,107340.0,107330.0,0.60282704]
[1734428671726,0.079485,107340.0,107330.0,0.10124768]
[1734428672331,0.079485,107340.0,107330.0,0.60282704]
[1734428672633,0.079485,107340.0,107330.0,1.16902461]
[1734428673525,0.0329,107340.0,107330.0,1.16902461]
[1734428673731,0.0329,107340.0,107330.0,0.61156266]
[1734428673931,0.0329,107340.0,107330.0,1.16902461]
[1734428674227,0.0329,107340.0,107330.0,1.16028899]
[1734428674524,0.0329,107340.0,107330.0,0.60282704]
[1734428674720,0.0329,107340.0,107330.0,0.10124768]
[1734428678828,0.47147477,107350.0,107340.0,0.046583]
[1734428679034,0.47147477,107350.0,107320.0,0.96832677]
[1734428679334,0.47147477,107350.0,107340.0,0.05466068]
[1734428679534,0.47147477,107350.0,107340.0,0.10124368]
[1734428679735,0.52663545,107350.0,107340.0,0.046583]
[1734428680746,0.52613545,107350.0,107340.0,0.046583]
[1734428680937,0.52613545,107350.0,107330.0,0.10124568]
[1734428681130,0.46204368,107340.0,107330.0,0.046585]
[1734428681439,0.407383,107340.0,107330.0,0.046585]
[1734428683939,0.407383,107340.0,107330.0,0.10124568]
[1734428684146,0.42539477,107350.0,107340.0,0.046583]
[1734428684439,0.42539477,107350.0,107340.0,0.10124368]
[1734428684637,0.42489477,107350.0,107340.0,0.10124368]
[1734428685039,0.36089477,107350.0,107340.0,0.15590436]
[1734428685245,0.36089477,107350.0,107340.0,0.65748372]
[1734428685443,0.36089477,107350.0,107340.0,0.15590436]
[1734428685643,0.36089477,107350.0,107340.0,0.10124368]
[1734428685644,0.36139477,107350.0,107340.0,0.10124368]
[1734428686646,0.36089477,107350.0,107340.0,0.10124368]
[1734428687732,0.36139477,107350.0,107340.0,0.10124368]
[1734428689041,0.36139477,107350.0,107340.0,0.13212346]
[1734428690639,0.36089477,107350.0,107340.0,0.13212346]
[1734428690840,0.36089477,107350.0,107340.0,0.07746278]
[1734428691046,0.41555545,107350.0,107340.0,0.07746278]
[1734428691443,0.46213345,107350.0,107340.0,0.03087978]
[1734428691639,0.046583,107340.0,107330.0,0.06495761]
[1734428691943,0.076683,107340.0,107330.0,0.06495761]
[1734428692142,0.109183,107340.0,107330.0,0.06495761]